bitfinex/quotes_SOLUSD_20250604
["timestamp","ask_amount","ask_price","bid_price","bid_amount"]
[1749046434208,26.0,155.03,154.91,18.79181043]
[1749046434209,0.14216157,155.02,154.91,18.79181043]
[1749046434398,0.14216157,155.02,154.92,0.28432314]
[1749046434599,0.14216157,155.02,154.92,0.14216157]
[1749046435395,0.14216157,155.02,154.92,0.28432314]
[1749046435598,26.0,154.99,154.9,26.14216157]
[1749046435793,26.0,154.99,154.89,8.011]
[1749046435992,26.0,154.99,154.89,25.05444886]
[1749046436196,26.0,154.99,154.91,0.28432314]
[1749046436730,26.0,154.99,154.91,0.14216157]
[1749046436898,26.0,154.99,154.91,0.28432314]
[1749046439242,26.0,154.99,154.91,0.42648471]
[1749046439422,26.0,155.01,154.92,0.28432314]
[1749046441459,1.6498,155.04,154.92,20.78769514]
[1749046442739,26.0,155.02,154.92,20.78769514]
[1749046446711,27.6498,155.04,154.95,26.0]
[1749046447139,26.0,155.02,154.92,46.78769514]
[1749046448728,26.0,155.02,154.92,26.28432314]
[1749046449848,18.79181043,155.01,154.9,18.79181043]
[1749046450352,18.79181043,155.01,154.89,32.4048]
[1749046450535,26.0,154.98,154.9,0.14216157]
[1749046450736,26.0,154.98,154.89,6.54696157]
[1749046451249,26.0,154.98,154.89,6.4048]
[1749046451751,26.0,154.98,154.9,18.933972]
[1749046452050,26.0,155.0,154.91,0.28432314]
[1749046452258,32.6162,155.03,154.94,18.933972]
[1749046452944,6.6162,155.03,154.94,18.933972]
[1749046453255,32.6162,155.03,154.94,18.933972]
[1749046453659,26.0,155.03,154.94,18.933972]
[1749046454151,1.6498,155.04,154.94,18.933972]
[1749046454662,26.0,155.03,154.94,18.933972]
[1749046454832,26.0,155.03,154.95,0.14216157]
[1749046456249,26.0,155.03,154.94,18.933972]
[1749046456949,27.6498,155.04,154.94,18.79181043]
[1749046457163,27.6498,155.04,154.95,0.14216157]
[1749046457371,27.6498,155.04,154.96,18.79181043]
[1749046458483,27.6498,155.04,154.97,0.14216157]
[1749046458790,3.3582727,155.12,154.97,0.14216157]
[1749046458791,1.53,155.08,154.97,0.42648471]
[1749046459150,27.53,155.08,154.97,0.42648471]
[1749046459660,1.53,155.08,154.97,0.42648471]
[1749046459865,0.14216157,155.07,154.97,0.14216157]
[1749046460076,26.0,155.04,154.96,25.22394886]
[1749046460777,26.0,155.04,154.95,1.89302314]
[1749046461557,26.0,155.04,154.95,0.28432314]
[1749046464290,26.0,155.04,154.94,0.42648471]
[1749046464469,26.0,155.05,154.94,0.42648471]
[1749046464659,1.53,155.08,154.97,19.21829514]
[1749046465078,26.0,155.07,154.97,19.21829514]
[1749046465455,26.0,155.07,154.97,19.07613357]
[1749046465662,26.14216157,155.07,154.97,0.28432314]
[1749046465862,26.14216157,155.07,154.94,27.64216157]
[1749046466078,26.14216157,155.07,154.96,0.28432314]
[1749046466797,26.0,155.06,154.96,0.28432314]
[1749046468271,26.0,155.06,154.96,0.42648471]
[1749046468694,26.0,155.07,154.96,0.56864628]
[1749046468892,26.0,155.07,154.98,0.14216157]
[1749046469800,26.0,155.07,154.99,18.933972]
[1749046471467,0.14216157,155.06,154.94,4.61701974]
[1749046471665,0.14216157,155.06,154.9,15.81777962]
[1749046471666,0.14216157,155.03,154.9,11.24811974]
[1749046471888,0.14216157,155.03,154.9,6.6311]
[1749046471889,1.6444,155.01,154.9,6.6311]
[1749046472280,1.6444,155.01,154.91,19.07613357]
[1749046472796,1.6444,155.01,154.91,18.64964886]
[1749046473894,1.6444,155.01,154.92,0.14216157]
[1749046474389,1.6444,155.01,154.92,0.28432314]
[1749046475487,1.6444,155.01,154.92,0.42648471]
[1749046475996,26.0,155.02,154.92,26.56864628]
[1749046476288,26.0,155.02,154.96,0.28432314]
[1749046476673,26.0,155.02,154.96,0.42648471]
[1749046476868,7.8873,155.05,154.96,0.42648471]
[1749046477286,26.0,155.02,154.96,0.42648471]
[1749046479780,7.8873,155.05,154.96,0.42648471]
[1749046479983,14.65557149,155.08,154.98,0.28432314]
[1749046479984,26.0,155.06,154.98,0.28432314]
[1749046480185,26.0,155.06,155.0,0.28432314]
[1749046480409,8.0487,155.09,155.0,0.28432314]
[1749046480818,26.0,155.06,155.0,0.28432314]
[1749046481607,8.0487,155.09,155.0,0.28432314]
[1749046481916,34.0487,155.09,155.0,0.28432314]
[1749046483994,27.5218,155.09,155.0,0.28432314]
[1749046486498,26.0,155.06,155.0,0.28432314]
[1749046486708,26.0,155.06,154.98,18.933972]
[1749046486916,26.0,155.06,154.97,6.5866]
[1749046487099,6.1819,155.06,154.97,18.64964886]
[1749046487807,26.0,155.03,154.96,18.933972]
[1749046488008,26.0,155.03,154.93,6.3689]
[1749046488216,1.6094,155.02,154.93,6.3689]
[1749046488406,1.6094,155.02,154.92,1.5159]
[1749046488407,1.6094,155.02,154.92,27.5159]
[1749046489897,27.6094,155.02,154.91,19.07613357]
[1749046491407,27.6094,155.02,154.92,18.79181043]
[1749046491619,1.6094,155.02,154.93,0.42648471]
[1749046491911,6.1819,155.06,154.94,0.14216157]
[1749046491912,7.7109,155.06,154.94,0.14216157]
[1749046492128,26.0,155.03,154.94,0.14216157]
[1749046498231,26.0,155.03,154.95,0.42648471]
[1749046498447,26.0,155.03,154.97,0.28432314]
[1749046499248,7.7109,155.06,154.97,0.28432314]
[1749046499249,1.529,155.06,154.97,0.42648471]
[1749046499450,29.26534599,155.1,154.97,0.42648471]
[1749046499451,7.6167,155.1,154.97,0.42648471]
[1749046499629,26.0,155.07,154.97,0.42648471]
[1749046500820,26.0,155.07,154.96,25.41841043]
[1749046501337,0.14216157,155.06,154.96,18.64964886]
[1749046501548,1.6242,155.05,154.96,0.14216157]
[1749046501744,1.6242,155.05,154.94,0.28432314]
[1749046501745,26.0,155.04,154.94,0.28432314]
[1749046501953,0.14216157,155.03,154.93,18.64964886]
[1749046502120,26.0,155.04,154.93,18.64964886]
[1749046502438,26.0,155.04,154.94,0.56864628]
[1749046502641,26.0,155.04,154.94,0.14216157]
[1749046502857,0.14216157,155.03,154.93,18.64964886]
[1749046503029,26.0,155.0,154.93,18.64964886]
[1749046503215,26.0,155.0,154.94,0.28432314]
[1749046503853,26.0,155.0,154.93,18.64964886]
[1749046504057,26.0,155.0,154.92,6.34386157]
[1749046504860,26.0,155.0,154.92,18.79181043]
[1749046505921,6.54226157,155.03,154.87,4.6221847]
[1749046505922,26.0,154.96,154.87,4.6221847]
[1749046506145,26.0,154.96,154.85,0.14216157]
[1749046506648,26.0,154.97,154.85,18.79181043]
[1749046506830,26.0,154.97,154.86,0.42648471]
[1749046507337,26.0,154.98,154.86,0.42648471]
[1749046507850,0.14216157,154.97,154.86,19.07613357]
[1749046508147,0.14216157,154.97,154.86,32.93613357]
[1749046508652,0.14216157,154.97,154.86,19.07613357]
[1749046508866,1.5786,154.99,154.86,0.42648471]
[1749046508867,27.5786,154.99,154.86,0.42648471]
[1749046509068,27.5786,154.99,154.86,0.56864628]
[1749046509270,27.5786,154.99,154.89,0.14216157]
[1749046509564,27.5786,154.99,154.88,45.07613357]
[1749046509565,1.5786,154.99,154.88,45.07613357]
[1749046510071,1.5786,154.99,154.89,0.14216157]
[1749046510657,19.21829514,154.98,154.84,10.87569942]
[1749046510861,26.0,154.93,154.85,32.50964886]
[1749046511059,6.6176,154.97,154.85,32.50964886]
[1749046511060,26.0,154.94,154.86,0.14216157]
[1749046511358,26.0,154.94,154.88,0.56864628]
[1749046511565,26.0,154.98,154.88,0.56864628]
[1749046512270,26.0,154.98,154.88,0.42648471]
[1749046512641,26.0,154.98,154.88,0.28432314]
[1749046513353,26.0,154.98,154.86,0.42648471]
[1749046515761,1.5786,154.99,154.89,19.21829514]
[1749046516055,26.0,154.98,154.91,18.933972]
[1749046521282,26.0,154.98,154.88,26.0]
[1749046521491,26.0,154.98,154.89,18.933972]
[1749046521668,26.0,154.98,154.89,44.933972]
[1749046521868,26.0,154.98,154.89,44.79181043]
[1749046522877,26.0,154.98,154.88,0.14216157]
[1749046523188,26.0,154.98,154.86,8.1298]
[1749046523189,0.14216157,154.97,154.86,8.1298]
[1749046523392,0.14216157,154.97,154.83,0.14216157]
[1749046523393,1.5213,154.93,154.83,0.14216157]
[1749046523694,1.5213,154.93,154.82,8.0228]
[1749046524109,18.11399281,154.99,154.82,8.0228]
[1749046524110,4.56257794,155.01,154.9,26.0]
[1749046524298,39.74760561,155.05,154.9,26.0]
[1749046524299,9.9369014,155.07,154.95,18.79181043]
[1749046524500,1.6343,155.07,154.98,26.0]
[1749046524712,6.5204,155.1,155.02,26.0]
[1749046525000,1.5803,155.13,155.02,31.51160668]
[1749046525205,1.5803,155.13,155.03,26.0]
[1749046525717,3.35744096,155.15,155.03,26.0]
[1749046526217,3.35744096,155.15,155.04,18.933972]
[1749046526218,29.35744096,155.15,155.04,18.933972]
[1749046526531,26.0,155.15,155.04,18.933972]
[1749046526803,7.6515,155.18,155.03,26.0]
[1749046526804,0.14216157,155.17,155.03,26.0]
[1749046527008,18.79181043,155.17,155.04,26.0]
[1749046527310,26.0,155.14,155.04,26.0]
[1749046527500,0.14216157,155.13,155.04,26.0]
[1749046529606,18.933972,155.13,155.02,0.28432314]
[1749046529777,18.933972,155.13,155.02,26.28432314]
[1749046530490,0.14216157,155.14,155.03,18.64964886]
[1749046530804,26.0,155.14,155.03,18.64964886]
[1749046530991,0.14216157,155.13,155.03,18.64964886]
[1749046533523,18.933972,155.13,155.03,26.0]
[1749046533741,0.14216157,155.14,155.03,26.0]
[1749046533946,26.0,155.15,155.05,0.14216157]
[1749046534132,26.0,155.15,155.05,3.36549227]
[1749046534451,26.0,155.15,155.06,18.933972]
[1749046535840,0.14216157,155.14,155.01,19.07613357]
[1749046536044,0.14216157,155.14,155.02,0.14216157]
[1749046536730,0.14216157,155.14,155.02,3.42229433]
[1749046536904,0.14216157,155.14,155.04,0.28432314]
[1749046538129,26.0,155.15,155.04,0.28432314]
[1749046538718,26.0,155.15,155.04,0.42648471]
[1749046539561,7.6515,155.18,155.06,0.42648471]
[1749046539937,26.0,155.15,155.06,0.42648471]
[1749046541649,26.0,155.15,155.06,0.28432314]
[1749046542686,26.0,155.15,155.06,0.42648471]
[1749046543664,27.5743,155.18,155.09,18.933972]
[1749046546458,27.5743,155.18,155.1,0.14216157]
[1749046546975,6.40696157,155.22,155.1,0.28432314]
[1749046546976,26.0,155.19,155.1,0.28432314]
[1749046547578,7.7973,155.22,155.13,18.933972]
[1749046547784,7.7973,155.22,155.13,26.0]
[1749046548079,0.14216157,155.21,155.13,26.0]
[1749046548273,0.14216157,155.21,155.11,18.933972]
[1749046548474,26.0,155.19,155.11,26.0]
[1749046549780,0.14216157,155.21,155.11,26.0]
[1749046549973,26.0,155.2,155.11,26.0]
[1749046551266,7.7973,155.22,155.12,18.933972]
[1749046551484,1.5325,155.22,155.15,26.0]
[1749046551785,26.0,155.24,155.15,26.0]
[1749046551963,26.0,155.24,155.16,18.933972]
[1749046552487,7.6513,155.26,155.16,18.933972]
[1749046552864,33.6513,155.26,155.16,18.933972]
[1749046553070,7.6513,155.26,155.16,18.933972]
[1749046553273,33.6513,155.26,155.16,18.933972]
[1749046554388,1.6338,155.26,155.17,0.14216157]
[1749046555066,27.6338,155.26,155.16,25.043072]
[1749046556499,0.14216157,155.25,155.15,26.0]
[1749046559065,27.6338,155.26,155.16,0.28432314]
[1749046559270,27.6338,155.26,155.16,18.933972]
[1749046559683,27.6338,155.26,155.16,26.0]
[1749046559684,0.14216157,155.25,155.16,26.0]
[1749046560507,26.0,155.22,155.12,0.14216157]
[1749046560670,0.14216157,155.21,155.09,0.14216157]
[1749046560874,0.14216157,155.21,155.11,32.1562]
[1749046561071,32.1006,155.22,155.12,18.64964886]
[1749046562277,0.28432314,155.24,155.12,18.64964886]
[1749046562278,26.0,155.24,155.15,26.0]
[1749046563385,26.0,155.24,155.16,18.933972]
[1749046563701,1.6338,155.26,155.17,0.14216157]
[1749046564112,7.7749,155.3,155.2,18.933972]
[1749046564272,26.0,155.27,155.17,0.14216157]
[1749046565595,0.14216157,155.29,155.17,0.14216157]
[1749046565876,26.0,155.27,155.17,0.14216157]
[1749046566074,26.0,155.27,155.16,45.07613357]
[1749046567406,0.14216157,155.29,155.12,18.79181043]
[1749046567407,26.14216157,155.26,155.12,18.79181043]
[1749046567589,27.5021,155.22,155.12,44.79181043]
[1749046567786,27.5021,155.22,155.13,0.28432314]
[1749046568400,27.5021,155.22,155.12,18.79181043]
[1749046568600,27.5021,155.22,155.14,26.0]
[1749046569123,1.5021,155.22,155.13,0.28432314]
[1749046569291,27.5021,155.22,155.14,26.0]
[1749046569494,1.5352,155.26,155.15,19.07613357]
[1749046569725,26.0,155.25,155.15,19.07613357]
[1749046570094,1.5352,155.26,155.15,19.07613357]
[1749046571427,1.5352,155.26,155.16,0.14216157]
[1749046571636,1.5352,155.26,155.19,18.933972]
[1749046572216,26.0,155.27,155.19,18.933972]
[1749046572421,26.0,155.27,155.2,0.14216157]
[1749046572601,7.771,155.3,155.2,0.14216157]
[1749046573217,33.771,155.3,155.2,0.14216157]
[1749046573429,33.771,155.3,155.2,0.28432314]
[1749046573723,1.6267,155.3,155.2,0.28432314]
[1749046573933,27.6267,155.3,155.2,0.28432314]
[1749046574933,8.178,155.34,155.23,19.07613357]
[1749046575498,34.178,155.34,155.23,19.07613357]
[1749046576031,1.5546,155.38,155.27,44.79181043]
[1749046576204,1.5546,155.38,155.28,0.28432314]
[1749046576409,26.0,155.37,155.28,0.28432314]
[1749046577328,1.5546,155.38,155.28,0.28432314]
[1749046577527,1.5546,155.38,155.27,44.64964886]
[1749046577528,0.14216157,155.37,155.27,44.64964886]
[1749046577853,26.14216157,155.37,155.27,44.64964886]
[1749046578053,26.0,155.35,155.27,26.0]
[1749046578340,26.0,155.35,155.25,18.64964886]
[1749046578648,26.0,155.35,155.25,18.79181043]
[1749046579320,26.0,155.37,155.29,18.79181043]
[1749046579748,26.0,155.37,155.3,0.14216157]
[1749046581050,26.0,155.37,155.27,26.0]
[1749046581228,26.0,155.36,155.28,26.0]
[1749046581941,26.0,155.36,155.26,0.42648471]
[1749046582448,26.0,155.36,155.26,0.56864628]
[1749046583153,26.0,155.36,155.26,2.18044628]
[1749046583355,26.0,155.37,155.29,18.933972]
[1749046584143,26.0,155.37,155.27,26.0]
[1749046584452,26.0,155.37,155.28,18.64964886]
[1749046584952,26.0,155.37,155.26,0.14216157]
[1749046585127,26.14216157,155.36,155.25,18.79181043]
[1749046585329,0.14216157,155.34,155.24,6.5434]
[1749046585651,26.0,155.34,155.25,18.64964886]
[1749046586032,26.0,155.34,155.26,0.28432314]
[1749046586220,26.0,155.36,155.26,0.42648471]
[1749046588652,26.0,155.36,155.26,0.28432314]
[1749046588948,26.0,155.36,155.24,6.5434]
[1749046588949,26.0,155.32,155.24,6.68556157]
[1749046589150,26.0,155.32,155.23,13.71]
[1749046590133,26.0,155.32,155.24,18.933972]
[1749046590329,0.14216157,155.35,155.24,18.933972]
[1749046590660,1.6208,155.32,155.23,13.71]
[1749046590965,1.6208,155.32,155.23,44.933972]
[1749046591252,1.6208,155.32,155.23,18.933972]
[1749046591421,1.6208,155.32,155.23,0.28432314]
[1749046592441,1.6208,155.32,155.25,0.28432314]
[1749046593791,18.79181043,155.36,155.25,0.42648471]
[1749046593792,1.80086157,155.36,155.25,0.42648471]
[1749046593947,1.80086157,155.36,155.26,18.64964886]
[1749046594292,26.0,155.35,155.27,0.28432314]
[1749046595148,1.6587,155.36,155.27,0.28432314]
[1749046595349,26.0,155.35,155.27,0.28432314]
[1749046597058,26.0,155.35,155.26,18.64964886]
[1749046597849,26.0,155.33,155.23,26.0]
[1749046598051,26.0,155.33,155.24,18.64964886]
[1749046598359,26.0,155.33,155.23,26.14216157]
[1749046598976,26.0,155.33,155.22,18.79181043]
[1749046599170,26.0,155.33,155.23,0.28432314]
[1749046599675,26.0,155.33,155.21,1.5644]
[1749046599676,26.0,155.29,155.21,1.5644]
[1749046599847,26.0,155.29,155.21,20.21404886]
[1749046600251,0.14216157,155.32,155.22,18.933972]
[1749046600470,26.0,155.31,155.22,18.933972]
[1749046601873,18.933972,155.34,155.23,0.14216157]
[1749046601874,26.0,155.33,155.23,0.14216157]
[1749046610673,26.0,155.33,155.22,0.28432314]
[1749046610878,26.0,155.33,155.22,18.933972]
[1749046611687,1.6587,155.36,155.25,0.42648471]
[1749046611887,26.0,155.35,155.27,0.28432314]
[1749046612095,26.0,155.35,155.25,0.42648471]
[1749046612994,26.0,155.35,155.25,0.28432314]
[1749046613200,26.0,155.35,155.24,18.64964886]
[1749046613201,0.14216157,155.34,155.24,18.64964886]
[1749046613485,26.0,155.33,155.24,18.64964886]
[1749046613698,26.0,155.33,155.23,0.28432314]
[1749046614273,26.0,155.33,155.23,26.28432314]
[1749046614473,26.0,155.33,155.23,0.28432314]
[1749046616487,0.14216157,155.32,155.22,18.64964886]
[1749046617068,26.0,155.33,155.23,0.42648471]
[1749046620379,0.14216157,155.32,155.22,18.64964886]
[1749046620585,0.14216157,155.32,155.21,1.5644]
[1749046620778,26.0,155.28,155.18,18.79181043]
[1749046620996,26.0,155.28,155.18,0.14216157]
[1749046621312,26.0,155.28,155.18,18.79181043]
[1749046621694,26.0,155.28,155.2,0.14216157]
[1749046622705,26.0,155.28,155.17,6.19373304]
[1749046622895,27.6422,155.24,155.15,4.61793304]
[1749046623100,27.6422,155.24,155.14,4.76009461]
[1749046623400,0.14216157,155.23,155.12,6.1261]
[1749046623609,34.1627,155.24,155.12,6.1261]
[1749046623819,0.14216157,155.23,155.12,6.1261]
[1749046624323,34.1627,155.24,155.13,18.933972]
[1749046624614,27.6422,155.24,155.14,0.28432314]
[1749046625492,27.6422,155.24,155.14,0.14216157]
[1749046625708,27.6422,155.24,155.13,18.79181043]
[1749046626118,27.6422,155.24,155.14,0.42648471]
[1749046626405,27.6422,155.24,155.14,0.28432314]
[1749046626919,0.14216157,155.23,155.13,18.64964886]
[1749046630043,27.6422,155.24,155.14,0.28432314]
[1749046630422,27.6422,155.24,155.14,19.07613357]
[1749046630617,1.6422,155.24,155.14,19.07613357]
[1749046630824,27.6422,155.24,155.14,0.56864628]
[1749046631020,1.6422,155.24,155.14,0.56864628]
[1749046631234,26.0,155.25,155.16,19.21829514]
[1749046631439,7.7112,155.28,155.16,19.21829514]
[1749046631622,1.6583,155.28,155.16,19.21829514]
[1749046631837,1.6583,155.28,155.18,0.42648471]
[1749046632846,1.6583,155.28,155.18,19.21829514]
[1749046633034,6.4085,155.32,155.18,19.21829514]
[1749046633231,26.0,155.29,155.18,19.21829514]
[1749046634139,8.066,155.32,155.22,19.07613357]
[1749046634449,34.066,155.32,155.22,19.07613357]
[1749046636133,34.066,155.32,155.22,26.0]
[1749046636337,34.066,155.32,155.21,0.42648471]
[1749046636766,0.14216157,155.31,155.21,0.14216157]
[1749046637267,0.14216157,155.31,155.21,0.28432314]
[1749046637466,26.0,155.29,155.21,0.28432314]
[1749046637762,26.0,155.29,155.19,0.28432314]
[1749046637763,26.0,155.29,155.19,0.14216157]
[1749046638161,26.0,155.27,155.17,6.4769]
[1749046638556,26.0,155.27,155.18,0.28432314]
[1749046639760,26.0,155.27,155.18,19.07613357]
[1749046640859,26.0,155.29,155.18,19.07613357]
[1749046641046,26.0,155.29,155.21,0.28432314]
[1749046641452,8.066,155.32,155.21,19.07613357]
[1749046642457,1.6575,155.32,155.26,0.28432314]
[1749046642870,1.66956157,155.36,155.26,0.28432314]
[1749046643247,26.0,155.34,155.26,0.28432314]
[1749046643463,1.66956157,155.36,155.26,0.28432314]
[1749046643675,1.5274,155.36,155.26,0.28432314]
[1749046643857,1.5274,155.36,155.26,0.42648471]
[1749046644060,26.0,155.34,155.26,0.42648471]
[1749046644316,1.5274,155.36,155.28,26.0]
[1749046644797,1.5274,155.36,155.26,0.42648471]
[1749046645129,26.0,155.34,155.26,0.42648471]
[1749046647196,26.0,155.34,155.26,0.28432314]
[1749046648219,26.0,155.34,155.26,0.14216157]
[1749046648430,26.0,155.34,155.26,0.28432314]
[1749046648925,26.0,155.34,155.25,19.07613357]
[1749046649938,1.66956157,155.36,155.25,19.07613357]
[1749046650111,1.5274,155.36,155.25,19.07613357]
[1749046650700,1.5274,155.36,155.26,0.14216157]
[1749046650899,26.0,155.34,155.26,0.14216157]
[1749046651927,26.0,155.38,155.26,0.14216157]
[1749046652310,26.0,155.34,155.25,18.79181043]
[1749046652707,26.0,155.34,155.27,0.14216157]
[1749046653100,26.0,155.38,155.27,0.14216157]
[1749046655023,1.6595,155.4,155.27,0.14216157]
[1749046655419,26.0,155.38,155.27,0.14216157]
[1749046656650,26.14216157,155.37,155.26,18.64964886]
[1749046656831,26.14216157,155.37,155.27,0.14216157]
[1749046657034,26.14216157,155.37,155.25,0.14216157]
[1749046657233,26.14216157,155.37,155.24,6.50946157]
[1749046657234,27.6249,155.33,155.24,6.3673]
[1749046657437,27.6249,155.33,155.25,19.07613357]
[1749046658143,1.6249,155.33,155.25,19.07613357]
[1749046658315,1.6249,155.33,155.25,0.14216157]
[1749046658646,1.6249,155.33,155.23,26.0]
[1749046658864,26.0,155.31,155.22,1.5931]
[1749046660061,26.0,155.31,155.22,0.14216157]
[1749046660217,26.0,155.31,155.22,0.28432314]
[1749046661458,26.0,155.31,155.21,18.79181043]
[1749046661459,26.0,155.31,155.21,0.14216157]
[1749046661628,26.0,155.31,155.21,0.28432314]
[1749046662224,26.0,155.31,155.21,19.21829514]
[1749046663875,1.6249,155.33,155.21,19.21829514]
[1749046664053,27.6249,155.33,155.21,19.21829514]
[1749046673179,27.6249,155.33,155.21,23.81468349]
[1749046673489,0.14216157,155.37,155.25,19.21829514]
[1749046673490,1.6252,155.37,155.25,19.21829514]
[1749046673652,26.0,155.35,155.25,20.75569514]
[1749046674068,1.6252,155.37,155.25,20.75569514]
[1749046674384,26.0,155.35,155.25,20.75569514]
[1749046674553,27.6252,155.37,155.25,20.75569514]
[1749046676279,26.0,155.35,155.25,20.75569514]
[1749046679369,26.0,155.35,155.28,0.28432314]
[1749046680460,26.0,155.35,155.26,6.6004]
[1749046680778,26.0,155.35,155.27,0.28432314]
[1749046681760,26.0,155.35,155.25,1.5374]
[1749046682087,26.0,155.35,155.25,19.07613357]
[1749046682784,26.0,155.35,155.26,0.14216157]
[1749046685463,26.0,155.35,155.25,19.07613357]
[1749046685665,26.0,155.35,155.26,0.14216157]
[1749046687289,26.0,155.35,155.26,19.21829514]
[1749046687699,26.0,155.35,155.26,19.07613357]
[1749046688705,26.0,155.35,155.26,0.42648471]
[1749046691193,26.0,155.35,155.26,0.56864628]
[1749046692989,26.0,155.35,155.26,0.42648471]
[1749046693394,26.0,155.35,155.26,0.56864628]
[1749046695317,26.0,155.35,155.26,0.42648471]
[1749046696080,26.0,155.35,155.26,0.28432314]
[1749046699482,26.0,155.35,155.24,18.933972]
[1749046702588,26.0,155.35,155.25,0.14216157]
[1749046702788,1.6252,155.37,155.25,0.14216157]
[1749046703105,1.6252,155.37,155.25,5.04020684]
[1749046703278,26.0,155.35,155.25,5.04020684]
[1749046704417,26.0,155.35,155.24,0.14216157]
[1749046704710,26.0,155.35,155.24,0.42648471]
[1749046705802,26.0,155.35,155.24,0.56864628]
[1749046706899,26.0,155.35,155.24,5.18236841]
[1749046707086,26.0,155.35,155.27,0.14216157]
[1749046707405,1.6252,155.37,155.27,0.14216157]
[1749046707616,26.0,155.35,155.27,0.14216157]
[1749046707798,1.6252,155.37,155.27,0.14216157]
[1749046707997,26.0,155.35,155.27,0.14216157]
[1749046708590,26.0,155.35,155.28,0.28432314]
[1749046708785,26.0,155.35,155.3,0.28432314]
[1749046709902,26.0,155.35,155.28,19.07613357]
[1749046711014,26.0,155.35,155.26,4.61730915]
[1749046711214,26.0,155.35,155.27,0.28432314]
[1749046711596,26.0,155.35,155.25,4.75979531]
[1749046711811,26.0,155.35,155.26,0.14216157]
[1749046712412,26.0,155.35,155.24,18.64964886]
[1749046712891,26.0,155.35,155.25,0.28432314]
[1749046713097,26.0,155.35,155.25,0.14216157]
[1749046713302,26.0,155.35,155.25,0.28432314]
[1749046715616,26.0,155.35,155.25,0.14216157]
[1749046722038,26.0,155.35,155.26,0.28432314]
[1749046723334,26.0,155.35,155.24,19.07613357]
[1749046723536,0.14216157,155.36,155.24,19.07613357]
[1749046723537,26.0,155.34,155.24,19.07613357]
[1749046724426,0.14216157,155.36,155.24,19.07613357]
[1749046724427,26.0,155.33,155.24,19.07613357]
[1749046725355,26.0,155.33,155.24,23.69661824]
[1749046726347,26.0,155.35,155.25,0.14216157]
[1749046726520,26.0,155.35,155.26,0.28432314]
[1749046728840,26.0,155.35,155.25,0.42648471]
[1749046730062,26.0,155.35,155.26,0.14216157]
[1749046733147,26.0,155.35,155.27,0.28432314]
[1749046734372,26.0,155.35,155.25,4.62004692]
[1749046734573,26.0,155.34,155.24,18.933972]
[1749046734942,26.0,155.34,155.25,0.28432314]
[1749046737944,26.0,155.32,155.23,1.6452]
[1749046738166,26.0,155.32,155.22,6.3889]
[1749046738473,26.0,155.32,155.23,0.14216157]
[1749046738977,26.0,155.32,155.23,0.28432314]
[1749046739183,26.0,155.32,155.23,19.21829514]
[1749046739342,26.0,155.33,155.23,19.21829514]
[1749046739539,26.0,155.33,155.23,23.83927694]
[1749046740247,1.6252,155.37,155.23,23.83936101]
[1749046740568,26.0,155.35,155.23,23.83936101]
[1749046742372,26.0,155.35,155.27,0.28432314]
[1749046743975,26.0,155.35,155.27,0.42648471]
[1749046750566,26.0,155.35,155.27,0.51648471]
[1749046750985,26.0,155.35,155.29,0.28432314]
[1749046751185,26.0,155.35,155.27,0.09]
[1749046751399,26.0,155.35,155.27,0.37432314]
[1749046751569,26.0,155.35,155.27,0.09]
[1749046751889,26.0,155.35,155.27,0.23216157]
[1749046752094,26.0,155.35,155.27,0.28432314]
[1749046754368,25.0,155.35,155.27,0.28432314]
[1749046755171,25.0,155.35,155.23,23.41226135]
[1749046755377,18.79181043,155.34,155.24,0.23216157]
[1749046755586,18.79181043,155.34,155.24,0.28432314]
[1749046755974,8.3098,155.33,155.23,4.62085333]